fUST/lending_fUST_20240620
["ID","MTS","AMOUNT","RATE_DAILY","PERIOD"]
[329927346,1718838645576,-517.0,0.00028293,5]
[329927347,1718838645586,-154.69480862,0.00028482,4]
[329927348,1718838645596,-500.0,0.00028492,5]
[329927349,1718838645606,-500.0,0.00028493,5]
[329927350,1718838645615,-838.15,0.00028493,5]
[329927351,1718838645625,-500.0,0.00028493,5]
[329927352,1718838645635,-151.28629383,0.00028509,2]
[329927353,1718838645644,-151.59841819,0.00028587,2]
[329927354,1718838645653,-160.0,0.000287,2]
[329927355,1718838645664,-251.0,0.000287,2]
[329927356,1718838645675,-503.0,0.000287,2]
[329927357,1718838645684,-503.0,0.000287,2]
[329927358,1718838645693,-1016.0,0.000287,2]
[329927359,1718838645703,-155.44953031,0.00028743,2]
[329927360,1718838645713,-500.0,0.00028766,5]
[329927361,1718838645723,-500.0,0.00028767,5]
[329927362,1718838645733,-838.15,0.00028767,5]
[329927363,1718838645743,-500.0,0.00028767,5]
[329927364,1718838645753,-500.0,0.00028769,2]
[329927365,1718838645763,-7184.95606933,0.0002877,2]
[329927366,1718838645772,-154.81422293,0.0002877,7]
[329927367,1718838645781,-439.08072198,0.000289,2]
[329927368,1718838645790,-947.1,0.00028925,15]
[329927369,1718838645799,-287.4,0.00028925,15]
[329927370,1718838645808,-155.44953031,0.00028936,2]
[329927371,1718838645817,-783.13124269,0.00028995,2]
[329927372,1718838645826,-12151.25781975,0.00029,30]
[329927373,1718838645836,-152.70447763,0.00029001,2]
[329927374,1718838645845,-526.56179279,0.0002904,5]
[329927375,1718838645855,-500.0,0.00029041,5]
[329927376,1718838645864,-838.15,0.00029041,5]
[329927377,1718838645874,-500.0,0.00029041,5]
[329927378,1718838645883,-155.44953031,0.00029049,2]
[329927379,1718838645893,-154.81422293,0.000292,2]
[329927381,1718838645903,-151.28629383,0.00029257,2]
[329927383,1718838645913,-500.0,0.00029315,5]
[329927384,1718838645924,-838.15,0.00029315,5]
[329927385,1718838645933,-500.0,0.00029315,5]
[329927386,1718838645942,-151.59841819,0.00029504,2]
[329927387,1718838645951,-500.0,0.00029589,5]
[329927388,1718838645961,-838.15,0.00029589,5]
[329927389,1718838645970,-429.07442748,0.00029589,5]
[329927390,1718838645980,-517.0,0.00029783,5]
[329927391,1718838645990,-500.0,0.00029863,5]
[329927392,1718838645999,-838.15,0.00029863,5]
[329927393,1718838646008,-151.59841819,0.00029878,2]
[329927394,1718838646018,-151.56363198,0.00029927,2]
[329927395,1718838646028,-947.1,0.00029943,15]
[329927396,1718838646037,-287.4,0.00029943,15]
[329927397,1718838646047,-154.81422293,0.0003,4]
[329927398,1718838646056,-469.99127,0.0003,4]
[329927399,1718838646066,-160.0,0.0003,2]
[329927400,1718838646075,-350.15127391,0.0003,30]
[329927401,1718838646084,-491.39874238,0.0003,2]
[329927402,1718838646095,-151.28629383,0.00030039,7]
[329927403,1718838646105,-150.0,0.00030135,2]
[329927404,1718838646114,-500.0,0.00030136,120]
[329927405,1718838646123,-500.0,0.00030136,120]
[329927406,1718838646133,-500.0,0.00030136,120]
[329927407,1718838646142,-500.0,0.00030136,120]
[329927408,1718838646151,-500.0,0.00030136,120]
[329927409,1718838646161,-500.0,0.00030136,120]
[329927410,1718838646171,-500.0,0.00030136,120]
[329927411,1718838646180,-500.0,0.00030136,120]
[329927412,1718838646190,-500.0,0.00030136,120]
[329927413,1718838646199,-500.0,0.00030136,120]
[329927414,1718838646209,-500.0,0.00030136,120]
[329927415,1718838646218,-253.48524119,0.00030136,120]
[329927416,1718838646228,-500.0,0.00030136,5]
[329927417,1718838646237,-838.15,0.00030136,5]
[329927418,1718838646247,-155.44953031,0.00030187,7]
[329927419,1718838646256,-155.44953031,0.00030397,7]
[329927420,1718838646265,-504.77025642,0.0003041,5]
[329927421,1718838646274,-838.15,0.0003041,5]
[329927422,1718838646284,-155.44953031,0.00030461,7]
[329927423,1718838646293,-150.80395486,0.00030628,2]
[329927424,1718838646303,-155.44953031,0.00030666,7]
[329927425,1718838646312,-838.15,0.00030684,5]
[329927426,1718838646322,-151.59841819,0.00030741,7]
[329927427,1718838646331,-151.56363198,0.00030814,7]
[329927428,1718838646341,-838.30978095,0.00030958,5]
[329927429,1718838646351,-947.1,0.00030962,15]
[329927430,1718838646360,-287.4,0.00030962,15]
[329927431,1718838646370,-150.0,0.00031135,2]
[329927432,1718838646379,-301.60790972,0.00031142,4]
[329927433,1718838646388,-156.7944703,0.00031292,7]
[329927434,1718838646398,-517.0,0.0003135,5]
[329927435,1718838646407,-30141.03014032,0.000315,120]
[329927436,1718838646417,-155.44953031,0.00031502,7]
[329927437,1718838646428,-603.21581943,0.00031666,7]
[329927438,1718838646437,-151.59841819,0.00031789,7]
[329927439,1718838646447,-155.44953031,0.00031809,7]
[329927440,1718838646456,-151.59841819,0.00031907,7]
[329927441,1718838646466,-947.1,0.0003198,15]
[329927442,1718838646475,-287.4,0.0003198,15]
[329927443,1718838646487,-500.0,0.00032142,30]
[329927444,1718838646499,-500.0,0.00032142,30]
[329927445,1718838646508,-500.0,0.00032142,30]
[329927446,1718838646518,-447.92810229,0.00032142,30]
[329927447,1718838646528,-166.77710976,0.00032198,4]
[329927448,1718838646537,-151.28629383,0.00032269,7]
[329927449,1718838646546,-1206.43163887,0.00032467,30]
[329927450,1718838646556,-151.28629383,0.00032497,7]
[329927451,1718838646568,-1000.16048055,0.000325,2]
[329927452,1718838646578,-155.44953031,0.00032506,7]
[329927453,1718838646587,-151.5984182,0.00032582,7]
[329927454,1718838646596,-155.44953031,0.00032582,7]
[329927455,1718838646605,-155.44953031,0.00032653,7]
[329927456,1718838646615,-151.56363203,0.00032666,7]
[329927457,1718838646624,-151.28629386,0.0003275,7]
[329927458,1718838646634,-937.85782819,0.00032798,4]
[329927459,1718838646644,-155.44953042,0.00032879,7]
[329927460,1718838646653,-503.0,0.000329,6]
[329927461,1718838646663,-156.79447031,0.00032962,7]
[329927462,1718838646673,-155.16081861,0.00032997,4]
[329927463,1718838646683,-947.1,0.00032999,15]
[329927464,1718838646693,-287.4,0.00032999,15]
[329927465,1718838646702,-63331.86321942,0.00033,12]
[329927466,1718838646717,-5945.80022843,0.00033,12]
[329927467,1718838646729,-5040.449459,0.00033,12]
[329927751,1718838649452,-500.0,0.00028219,5]
[329927753,1718838649462,-224.93253984,0.00028493,5]
[329927803,1718839514295,1622.19324923,9.999e-05,2]
[329927804,1718839612160,-154.81552663,0.00019,2]
[329927805,1718839628183,-384.78004423,0.00019,2]
[329927806,1718839628205,-721.8560357,0.0002,2]
[329927807,1718839647135,-5415.54618974,0.0002,2]
[329927808,1718839647156,-282.75745015,0.00022795,2]
[329927809,1718839647189,-2878.23665169,0.00022796,2]
[329927810,1718839647211,-482.39629157,0.00022797,2]
[329927811,1718839647235,-32179.39731344,0.00022797,7]
[329927812,1718839647258,-12412.56637089,0.00022798,2]
[329927813,1718839647282,-450.0,0.00024042,2]
[329927814,1718839647304,-24900.0,0.00024043,2]
[329927815,1718839647327,-163.2715501,0.00024237,2]
[329927816,1718839647349,-500.0,0.00026155,5]
[329927817,1718839647374,-500.0,0.00026155,5]
[329927818,1718839647397,-500.0,0.00026429,5]
[329927819,1718839647421,-405.33,0.00026429,5]
[329927820,1718839647443,-500.0,0.00026703,5]
[329927821,1718839647464,-500.0,0.00026977,5]
[329927822,1718839647488,-500.0,0.00027251,5]
[329927823,1718839647508,-174.86877295,0.000274,2]
[329927824,1718839647528,-287.90129371,0.000275,30]
[329927825,1718839647549,-500.0,0.00027525,5]
[329927826,1718839647570,-286.59787058,0.00027799,5]
[329927827,1718839647593,-267.87185097,0.00028,2]
[329927828,1718839647615,-1282.93583529,0.00028,5]
[329927829,1718839647635,-154.81422293,0.00028493,7]
[329927830,1718839647658,-457.52724124,0.00028493,2]
[329927831,1718839647680,-1503.13098405,0.00028995,2]
[329927832,1718839647703,-500.0,0.00028999,5]
[329927833,1718839647726,-500.0,0.00028999,5]
[329927834,1718839647750,-15024.14,0.00028999,2]
[329927835,1718839647772,-15024.14,0.00028999,2]
[329927836,1718839647796,-15024.14,0.00028999,2]
[329927837,1718839647822,-11635.77764431,0.00028999,2]
[329927851,1718839832952,-225.766562,0.00021096,2]
[329927852,1718839832962,-1570.80403893,0.00022695,2]
[329927853,1718839832971,-31014.97124282,0.00022795,2]
[329927854,1718839832981,-31490.65101609,0.00022795,2]
[329927855,1718839832992,-170.38386991,0.00026055,2]
[329927856,1718839833001,-500.0,0.00026155,5]
[329927857,1718839833010,-500.0,0.00026155,5]
[329927858,1718839833020,-500.0,0.00026429,5]
[329927859,1718839833032,-500.0,0.00026429,5]
[329927860,1718839833041,-500.0,0.00026703,5]
[329927861,1718839833051,-500.0,0.00026703,5]
[329927862,1718839833061,-500.0,0.00026977,5]
[329927863,1718839833070,-500.0,0.00026977,5]
[329927864,1718839833081,-225.766562,0.00027195,2]
[329927865,1718839833090,-500.0,0.00027251,5]
[329927866,1718839833099,-500.0,0.00027251,5]
[329927867,1718839833109,-174.86877295,0.000274,2]
[329927868,1718839833118,-500.0,0.00027525,5]
[329927870,1718839833127,-500.0,0.00027525,5]
[329927872,1718839833136,-500.0,0.00027799,5]
[329927874,1718839833146,-500.0,0.00027799,5]
[329927876,1718839833155,-267.87185097,0.00028,2]
[329927878,1718839833164,-500.0,0.00028073,5]
[329927880,1718839833174,-500.0,0.00028073,5]
[329927882,1718839833183,-500.0,0.00028347,5]
[329927884,1718839833192,-605.70251082,0.00028347,5]
[329927886,1718839833201,-500.0,0.00028621,5]
[329927888,1718839833211,-500.0,0.00028895,5]
[329927889,1718839833219,-783.13124269,0.00028995,2]
[329927891,1718839833229,-848.9021229,0.00028998,2]
[329927952,1718839838991,-1308.93373387,0.00028998,2]
[329928248,1718839843913,-39983.33674372,0.00028998,2]
[329928250,1718839843922,-3388.36235569,0.00028999,2]
[329928252,1718839843932,-15024.14,0.00028999,2]
[329928253,1718839843942,-15024.14,0.00028999,2]
[329928257,1718839843952,-15024.14,0.00028999,2]
[329928262,1718839843962,-15024.14,0.00028999,2]
[329928264,1718839843971,-15024.14,0.00028999,2]
[329928266,1718839843980,-15024.14,0.00028999,2]
[329928268,1718839843991,-15024.14,0.00028999,2]
[329928270,1718839844002,-15024.14,0.00028999,2]
[329928272,1718839844012,-15024.14,0.00028999,2]
[329928274,1718839844021,-15024.14,0.00028999,2]
[329928276,1718839844031,-15024.14,0.00028999,2]
[329928278,1718839844042,-15024.14,0.00028999,2]
[329928280,1718839844051,-6620.4176746,0.00028999,2]
[329928700,1718840851139,-539.59557086,0.00019,2]
[329928701,1718840851159,-203.189905,0.00021096,2]
[329928702,1718840851180,-654.68461418,0.00021578,2]
[329928703,1718840968102,-150.0,0.00019478,2]
[329928704,1718840971102,-293.3938918,0.00021096,2]
[329928705,1718840971131,-31.1770264,0.00021578,2]
[329928747,1718841040792,-1253.08271049,0.00021578,2]
[329928748,1718841040805,-22961.05564893,0.00021578,2]
[329928749,1718841040814,-167.1,0.00022271,4]
[329928750,1718841040823,-314.4128779,0.00022574,2]
[329928751,1718841040832,-167.1,0.00023246,4]
[329928752,1718841040842,-167.1,0.00024222,5]
[329928753,1718841040852,-150.0,0.00024478,2]
[329928754,1718841040861,-1423.03186012,0.00024557,2]
[329928755,1718841040871,-535.94,0.00024657,5]
[329928756,1718841040880,-500.0,0.00024657,5]
[329928757,1718841040890,-500.0,0.00024657,5]
[329928758,1718841040900,-500.0,0.00024657,5]
[329928759,1718841040909,-290.42217816,0.00024657,5]
[329928760,1718841040919,-500.0,0.00024657,5]
[329928761,1718841040928,-154.87892401,0.00024657,5]
[329928762,1718841040938,-500.0,0.00024657,5]
[329928763,1718841040947,-500.0,0.00024657,5]
[329928764,1718841040957,-529.80356383,0.00024657,5]
[329928765,1718841040966,-500.0,0.00024657,5]
[329928766,1718841040984,-500.0,0.00024657,5]
[329928767,1718841040995,-511.0958342,0.00024657,5]
[329928768,1718841041005,-505.53855053,0.00024657,5]
[329928769,1718841041015,-500.0,0.00024657,5]
[329928770,1718841041026,-516.02195612,0.00024657,5]
[329928771,1718841041036,-196.52294572,0.00024657,5]
[329928772,1718841041045,-500.0,0.00024657,5]
[329928773,1718841041054,-322.79528503,0.00024657,5]
[329928774,1718841041065,-175.62968649,0.00024657,5]
[329928775,1718841041075,-500.0,0.00024657,5]
[329928777,1718841041084,-500.0,0.00024657,5]
[329928779,1718841041094,-500.0,0.00024657,5]
[329928781,1718841041104,-500.0,0.00024657,5]
[329928783,1718841041113,-228.59585707,0.00024657,5]
[329928785,1718841041123,-500.0,0.00024657,5]
[329928787,1718841041133,-500.0,0.00024657,5]
[329928789,1718841041142,-500.0,0.00024657,5]
[329928791,1718841041152,-500.0,0.00024657,5]
[329928793,1718841041162,-500.0,0.00024657,5]
[329928795,1718841041172,-500.0,0.00024657,5]
[329928797,1718841041182,-228.75,0.00024657,5]
[329928799,1718841041192,-535.48616858,0.00024657,5]
[329928801,1718841041202,-500.0,0.00024657,5]
[329928803,1718841041212,-500.0,0.00024657,5]
[329928805,1718841041222,-500.0,0.00024657,5]
[329928807,1718841041231,-500.0,0.00024657,5]
[329928809,1718841041241,-500.0,0.00024657,5]
[329928811,1718841041251,-500.0,0.00024657,5]
[329928813,1718841041260,-500.0,0.00024657,5]
[329928815,1718841041269,-535.94,0.00024931,5]
[329928817,1718841041280,-500.0,0.00024931,5]
[329928819,1718841041289,-500.0,0.00024931,5]
[329928821,1718841041298,-500.0,0.00024931,5]
[329928822,1718841041308,-500.0,0.00024931,5]
[329928824,1718841041318,-500.0,0.00024931,5]
[329928826,1718841041328,-500.0,0.00024931,5]
[329928828,1718841041338,-500.0,0.00024931,5]
[329928830,1718841041347,-167.1,0.00025197,6]
[329928832,1718841041361,-535.94,0.00025205,5]
[329928834,1718841041371,-500.0,0.00025205,5]
[329928836,1718841041382,-500.0,0.00025205,5]
[329928838,1718841041391,-500.0,0.00025205,5]
[329928840,1718841041402,-500.0,0.00025205,5]
[329928842,1718841041411,-500.0,0.00025205,5]
[329928844,1718841041420,-500.0,0.00025205,5]
[329928846,1718841041430,-500.0,0.00025205,5]
[329928848,1718841041442,-535.94,0.00025479,5]
[329928850,1718841041453,-500.0,0.00025479,5]
[329928853,1718841041462,-500.0,0.00025479,5]
[329928855,1718841041472,-500.0,0.00025479,5]
[329928857,1718841041482,-500.0,0.00025479,5]
[329928858,1718841041492,-163.04821467,0.00025653,2]
[329928860,1718841041501,-535.94,0.00025753,5]
[329928862,1718841041510,-500.0,0.00025753,5]
[329928864,1718841041520,-500.0,0.00025753,5]
[329928866,1718841041531,-500.0,0.00025753,5]
[329928868,1718841041540,-535.94,0.00026027,5]
[329928871,1718841041550,-500.0,0.00026027,5]
[329928873,1718841041560,-587.0,0.00026027,5]
[329928875,1718841041569,-500.0,0.00026027,5]
[329928876,1718841041579,-175.8540668,0.00026154,2]
[329928879,1718841041590,-4955.94,0.00026154,2]
[329928881,1718841041599,-2711.06762008,0.00026154,2]
[329929340,1718841123694,-220.0,0.00034,120]
[329929341,1718841123717,-2625.42999967,0.00036,120]
[329929342,1718841123749,-220.0,0.00036,120]
[329929343,1718841123771,-2210.25989473,0.00038,120]
[329929344,1718841123794,-4504.3101056,0.000389,120]
[329929345,1718841157090,213.08963172,0.00034,120]
[329929349,1718841965560,521.20194231,9.999e-05,2]
[329929351,1718842033101,-154.98450155,0.00015,2]
[329929352,1718842033123,-289.58657313,0.00019374,2]
[329929353,1718842033145,-1174.74891115,0.00019375,2]
[329929354,1718842049150,-38893.52710855,0.00019375,2]
[329929355,1718842169126,-483.12173838,0.00019374,2]
[329929356,1718842169146,-1089.55285185,0.00019375,2]
[329929399,1718842231990,-15006.98981327,0.00019375,2]
[329929402,1718842232002,-577.87373476,0.00019375,2]
[329929404,1718842232011,-1293.97920439,0.00020996,2]
[329929545,1718842238133,-7.90739771,0.00020996,2]
[329929546,1718842238143,-206.233132,0.00021096,2]
[329929548,1718842238155,-24900.0,0.00024525,2]
[329929550,1718842238165,-374.07521033,0.00026153,2]
[329929552,1718842238174,-151.0,0.00026245,7]
[329929553,1718842238183,-3360.80068679,0.00026402,2]
[329929556,1718842238250,-3506.51533363,0.00026402,2]
[329929558,1718842238263,-305.87167569,0.00026402,2]
[329929566,1718842240139,-2221.63928048,0.00026402,2]
[329929567,1718842240152,-39.53231054,0.00026402,2]
[329929568,1718842240162,-206.233132,0.00027195,2]
[329929569,1718842240172,-151.0,0.0002721,7]
[329929571,1718842240182,-174.86877295,0.000274,2]
[329929573,1718842240191,-267.87185097,0.00028,2]
[329929575,1718842240200,-151.0,0.00028175,15]
[329929577,1718842240210,-163.04821467,0.00028898,2]
[329929579,1718842240219,-783.13124269,0.00028995,2]
[329929581,1718842240229,-209.33733066,0.00028996,2]
[329929583,1718842240239,-233.55462398,0.00028996,2]
[329929584,1718842240249,-2178.99460313,0.00028997,2]
[329929587,1718842240263,-12100.4578524,0.00028997,2]
[329929589,1718842240272,-15450.7050789,0.00028998,2]
[329929590,1718842240283,-259.42667018,0.00028999,7]
[329929592,1718842240292,-2182.28940615,0.00029,30]
[329929595,1718842240308,-2538.6220395,0.00029,30]
[329929893,1718842243019,-7430.3463741,0.00029,30]
[329929895,1718842243028,-265.1,0.00029126,3]
[329929897,1718842243037,-151.0,0.0002914,15]
[329929899,1718842243047,-176.41709316,0.000292,2]
[329929901,1718842243056,-154.81422293,0.0003,4]
[329929902,1718842243065,-469.99127,0.0003,4]
[329929904,1718842243074,-350.15127391,0.0003,30]
[329929907,1718842243084,-151.0,0.00030105,15]
[329929909,1718842243093,-151.0,0.00031069,15]
[329929912,1718842243102,-151.0,0.00032034,15]
[329929915,1718842243111,-153.0,0.00032752,2]
[329929918,1718842243121,-251.0,0.000329,6]
[329929921,1718842243130,-503.0,0.000329,6]
[329929923,1718842243139,-503.0,0.000329,6]
[329929926,1718842243149,-503.0,0.000329,6]
[329929929,1718842243160,-160.0,0.000329,8]
[329929931,1718842243169,-151.0,0.00032999,15]
[329929934,1718842243178,-151.0,0.00032999,15]
[329929937,1718842243187,-16758.99831872,0.00033,12]
[329929940,1718842243196,-770.08,0.00033,23]
[329929942,1718842243205,-2027.29664564,0.00033,12]
[329929943,1718842243214,-500.0,0.00033,2]
[329929946,1718842243224,-206.233132,0.00033295,2]
[329929948,1718842243233,-625.23855213,0.00034,4]
[329929949,1718842243246,-614.71990186,0.00034,4]
[329929951,1718842243255,-158.92015362,0.00034576,30]
[329929953,1718842243264,-27316.48729199,0.000349,2]
[329929956,1718842243274,-259.01273789,0.00035,4]
[329929958,1718842243284,-2703.82114949,0.00035,4]
[329929959,1718842243293,-6753.15266869,0.00035,4]
[329929962,1718842243303,-10333.98547115,0.00035,2]
[329929964,1718842243312,-398.34169325,0.00035,2]
[329929966,1718842243321,-1000.0,0.00035,35]
[329929968,1718842243334,-517.0,0.00035107,5]
[329929970,1718842243344,-174.651048,0.00035373,2]
[329929972,1718842243353,-200.89525,0.00035373,2]
[329929974,1718842243363,-500.0,0.00035616,7]
[329929976,1718842243372,-554.83965609,0.00035616,7]
[329929978,1718842243382,-154.81422293,0.0003589,2]
[329929980,1718842243391,-517.0,0.00036955,5]
[329929982,1718842243400,-49999.892,0.00038,30]
[329929983,1718842243410,-1547.18192631,0.00038,120]
[329929986,1718842243420,-500.0,0.00038122,30]
[329929987,1718842243429,-500.0,0.00038122,30]
[329929989,1718842243438,-500.0,0.00038122,30]
[329929991,1718842243448,-625.69040239,0.00038122,30]
[329929993,1718842243458,-4920.93958216,0.000389,120]
[329929995,1718842243467,-517.0,0.000389,5]
[329929997,1718842243477,-206.233132,0.00039394,2]
[329929999,1718842243486,-32551.75024449,0.000399,5]
[329930001,1718842243497,-1733.32,0.00039999,2]
[329930004,1718842243506,-1733.32,0.00039999,2]
[329930005,1718842243517,-1733.32,0.00039999,2]
[329930007,1718842243528,-1733.32,0.00039999,2]
[329930009,1718842243538,-1733.32,0.00039999,2]
[329930011,1718842243547,-1733.32,0.00039999,2]
[329930013,1718842243557,-1213.25493082,0.0004,2]
[329930015,1718842243566,-312.92341167,0.0004,120]
[329930017,1718842243576,-396.83376632,0.0004,60]
[329930029,1718842243673,-603.16623368,0.0004,60]
[329930031,1718842243683,-158.5135366,0.0004,2]
[329930033,1718842243694,-341.4864634,0.0004,2]
[329930035,1718842243702,-239.75077591,0.0004,120]
[329930257,1718842246119,-34756.43301909,0.0004,120]
[329930259,1718842246130,-742.73274109,0.0004,120]
[329932055,1718843232720,-200.0,0.00023188,4]
[329932056,1718843232742,-5.0,0.00024176,2]
[329932057,1718843345172,-164.986505,0.00021096,2]
[329932058,1718843345193,-186.244404,0.00024176,2]
[329932059,1718843345214,-205.0,0.00024277,2]
[329932060,1718843345235,-500.0,0.00024278,2]
[329932061,1718843345256,-500.0,0.00024278,2]
[329932062,1718843345278,-500.0,0.00024278,2]
[329932063,1718843345298,-500.0,0.00024278,2]
[329932064,1718843345318,-500.0,0.00024278,2]
[329932065,1718843345339,-500.0,0.00024278,2]
[329932066,1718843345362,-500.0,0.00024278,2]
[329932067,1718843345383,-500.0,0.00024278,2]
[329932068,1718843345403,-500.0,0.00024278,2]
[329932069,1718843345423,-500.0,0.00024278,2]
[329932070,1718843345444,-500.0,0.00024278,2]
[329932071,1718843345470,-500.0,0.00024278,2]
[329932072,1718843345491,-500.0,0.00024278,2]
[329932073,1718843345512,-500.0,0.00024278,2]
[329932074,1718843345535,-500.0,0.00024278,2]
[329932075,1718843345557,-500.0,0.00024278,2]
[329932076,1718843345577,-500.0,0.00024278,2]
[329932077,1718843345600,-500.0,0.00024278,2]
[329932078,1718843345626,-500.0,0.00024278,2]
[329932079,1718843345650,-500.0,0.00024278,2]
[329932080,1718843345671,-500.0,0.00024278,2]
[329932081,1718843345694,-500.0,0.00024278,2]
[329932082,1718843345716,-500.0,0.00024278,2]
[329932083,1718843345739,-500.0,0.00024278,2]
[329932084,1718843345760,-500.0,0.00024278,2]
[329932085,1718843345782,-295.5731065,0.00024278,2]
[329932086,1718843345803,-500.0,0.00024278,2]
[329932087,1718843345824,-500.0,0.00024278,2]
[329932088,1718843345846,-500.0,0.00024278,2]
[329932089,1718843345866,-500.0,0.00024278,2]
[329932090,1718843345887,-500.0,0.00024278,2]
[329932091,1718843345908,-500.0,0.00024278,2]
[329932092,1718843345929,-500.0,0.00024278,2]
[329932093,1718843345950,-200.0,0.00024278,2]
[329932094,1718843345971,-500.0,0.00024278,2]
[329932095,1718843345992,-500.0,0.00024278,2]
[329932096,1718843346013,-500.0,0.00024278,2]
[329932097,1718843346033,-243.697482,0.00024279,2]
[329932098,1718843346054,-24900.0,0.00024279,2]
[329932099,1718843346075,-1293.23061812,0.00024616,2]
[329932100,1718843346097,-200.0,0.00024716,6]
[329932101,1718843346117,-620.01733495,0.00025156,2]
[329932102,1718843421581,263.67054943,0.00025156,2]
[329932111,1718843432880,-166.7,0.00023206,4]
[329932112,1718843432889,-166.7,0.00024733,6]
[329932113,1718843432899,-193.85669181,0.00025156,2]
[329932114,1718843432908,-166.7,0.00026259,7]
[329932115,1718843432917,-2233.86227959,0.000265,2]
[329932174,1718843438205,-766.13772041,0.000265,2]
[329932176,1718843438214,-3000.0,0.0002651,2]
[329932178,1718843438224,-3000.0,0.0002652,2]
[329932180,1718843438233,-3000.0,0.0002653,2]
[329932182,1718843438243,-500.0,0.00026534,2]
[329932184,1718843438252,-500.0,0.00026534,2]
[329932186,1718843438262,-500.0,0.00026534,2]
[329932188,1718843438271,-599.55731065,0.00026534,2]
[329932190,1718843438280,-3000.0,0.0002654,2]
[329932205,1718843438413,-3000.0,0.0002655,2]
[329932207,1718843438423,-3000.0,0.0002656,2]
[329932209,1718843438432,-3000.0,0.0002657,2]
[329932211,1718843438441,-3000.0,0.0002658,2]
[329932213,1718843438451,-3000.0,0.0002659,2]
[329932215,1718843438461,-3000.0,0.000266,2]
[329932217,1718843438470,-3000.0,0.0002661,2]
[329932220,1718843438480,-500.0,0.00026619,2]
[329932222,1718843438493,-461.22953057,0.00026619,2]
[329932224,1718843438503,-500.0,0.00026619,2]
[329932226,1718843438512,-500.0,0.00026619,2]
[329932228,1718843438521,-611.59685143,0.00026619,2]
[329932230,1718843438531,-500.0,0.00026619,2]
[329932232,1718843438540,-500.0,0.00026619,2]
[329932234,1718843438550,-500.0,0.00026619,2]
[329932236,1718843438559,-263.67939492,0.00026619,2]
[329932238,1718843438568,-500.0,0.00026619,2]
[329932240,1718843438578,-500.0,0.00026619,2]
[329932242,1718843438587,-500.0,0.00026619,2]
[329932244,1718843438596,-283.5447059,0.00026619,2]
[329932246,1718843438606,-500.0,0.00026619,2]
[329932248,1718843438615,-500.0,0.00026619,2]
[329932250,1718843438624,-500.0,0.00026619,2]
[329932252,1718843438633,-500.0,0.00026619,2]
[329932254,1718843438645,-500.0,0.00026619,2]
[329932256,1718843438655,-500.0,0.00026619,2]
[329932258,1718843438664,-500.0,0.00026619,2]
[329932260,1718843438674,-500.0,0.00026619,2]
[329932262,1718843438685,-500.0,0.00026619,2]
[329932264,1718843438695,-500.0,0.00026619,2]
[329932266,1718843438704,-500.0,0.00026619,2]
[329932268,1718843438713,-500.0,0.00026619,2]
[329932270,1718843438724,-500.0,0.00026619,2]
[329932272,1718843438733,-500.0,0.00026619,2]
[329932274,1718843438742,-500.0,0.00026619,2]
[329932276,1718843438752,-500.0,0.00026619,2]
[329932278,1718843438763,-500.0,0.00026619,2]
[329932280,1718843438772,-500.0,0.00026619,2]
[329932282,1718843438781,-500.0,0.00026619,2]
[329932284,1718843438790,-500.0,0.00026619,2]
[329932286,1718843438799,-500.0,0.00026619,2]